[Event "*** Titled Tuesday Blitz"]
[Site "Chess.com"]
[Date "2020.03.03"]
[Round "3"]
[White "monstertube"]
[Black "Sordis"]
[Result "0-1"]
[WhiteElo "2126"]
[BlackElo "2378"]
[TimeControl "180+1"]
[EndTime "9:30:55 PST"]
[Termination "Sordis won by resignation"]

1. d4 {[%clk 0:03:00.9]} 1... Nf6 {[%clk 0:02:57.7]} 2. Nf3 {[%clk 0:03:00.6]}
2... g6 {[%clk 0:02:57.1]} 3. c4 {[%clk 0:02:58.7]} 3... Bg7 {[%clk 0:02:56.1]}
4. Nc3 {[%clk 0:02:58.6]} 4... d6 {[%clk 0:02:56.1]} 5. e4 {[%clk 0:02:58.3]}
5... O-O {[%clk 0:02:56.1]} 6. Be2 {[%clk 0:02:58]} 6... Na6 {[%clk 0:02:56.5]}
7. O-O {[%clk 0:02:56.9]} 7... e5 {[%clk 0:02:57]} 8. d5 {[%clk 0:02:56.5]} 8...
Nc5 {[%clk 0:02:56.3]} 9. Nd2 {[%clk 0:02:55]} 9... a5 {[%clk 0:02:55.4]} 10. b3
{[%clk 0:02:53.2]} 10... Bh6 {[%clk 0:02:55]} 11. a3 {[%clk 0:02:51.5]} 11...
Bxd2 {[%clk 0:02:54.6]} 12. Qxd2 {[%clk 0:02:51.2]} 12... Ncxe4 {[%clk
0:02:54.7]} 13. Nxe4 {[%clk 0:02:51.1]} 13... Nxe4 {[%clk 0:02:55.6]} 14. Qc2
{[%clk 0:02:50.2]} 14... f5 {[%clk 0:02:55.8]} 15. f3 {[%clk 0:02:49.3]} 15...
Nc5 {[%clk 0:02:55.4]} 16. Be3 {[%clk 0:02:47.6]} 16... b6 {[%clk 0:02:55]} 17.
b4 {[%clk 0:02:47.2]} 17... axb4 {[%clk 0:02:50.5]} 18. axb4 {[%clk 0:02:48.1]}
18... Rxa1 {[%clk 0:02:50.5]} 19. Rxa1 {[%clk 0:02:49]} 19... Nd7 {[%clk
0:02:51.4]} 20. c5 {[%clk 0:02:48.8]} 20... bxc5 {[%clk 0:02:51.1]} 21. bxc5
{[%clk 0:02:47.4]} 21... Nf6 {[%clk 0:02:49.3]} 22. Ra7 {[%clk 0:02:40.1]} 22...
f4 {[%clk 0:02:37.7]} 23. Bf2 {[%clk 0:02:35.9]} 23... Bf5 {[%clk 0:02:36.8]}
24. Qa2 {[%clk 0:02:26.2]} 24... e4 {[%clk 0:02:24.6]} 25. cxd6 {[%clk
0:02:09.5]} 25... cxd6 {[%clk 0:02:22.5]} 26. Qa6 {[%clk 0:02:04.7]} 26... exf3
{[%clk 0:02:13.1]} 27. Bxf3 {[%clk 0:02:02.1]} 27... Qc8 {[%clk 0:02:03.1]} 28.
Qa1 {[%clk 0:01:31.7]} 28... Qc2 {[%clk 0:01:21.5]} 29. Bd4 {[%clk 0:01:18.8]}
29... Qb1+ {[%clk 0:01:16.6]} 30. Qxb1 {[%clk 0:01:18.1]} 30... Bxb1 {[%clk
0:01:17.5]} 31. Ra6 {[%clk 0:01:14.6]} 31... Ne4 {[%clk 0:01:03.3]} 32. Bxe4
{[%clk 0:01:12.7]} 32... Bxe4 {[%clk 0:01:04.2]} 33. Rxd6 {[%clk 0:01:11.5]}
33... Ra8 {[%clk 0:01:04.7]} 34. Re6 {[%clk 0:00:52.5]} 34... Bxd5 {[%clk
0:01:01]} 35. Re2 {[%clk 0:00:51.9]} 35... Ra4 {[%clk 0:00:56.8]} 36. Rd2 {[%clk
0:00:50.9]} 36... Be4 {[%clk 0:00:51.5]} 37. Kf2 {[%clk 0:00:49.4]} 37... h5
{[%clk 0:00:51.1]} 38. h4 {[%clk 0:00:47.9]} 38... Kf7 {[%clk 0:00:51.1]} 39.
Bc5 {[%clk 0:00:42.2]} 39... Ke6 {[%clk 0:00:49.2]} 40. Bb6 {[%clk 0:00:41.1]}
40... Kf5 {[%clk 0:00:48.6]} 41. Bd8 {[%clk 0:00:40.2]} 41... Kg4 {[%clk
0:00:47.9]} 42. Bg5 {[%clk 0:00:39.1]} 42... Rc4 {[%clk 0:00:44.2]} 43. Rb2
{[%clk 0:00:38.5]} 43... Bf5 {[%clk 0:00:41.1]} 44. Rd2 {[%clk 0:00:35.4]} 44...
Be4 {[%clk 0:00:40.7]} 45. Rb2 {[%clk 0:00:34.5]} 45... f3 {[%clk 0:00:34.5]}
46. gxf3+ {[%clk 0:00:30.3]} 46... Bxf3 {[%clk 0:00:34.8]} 47. Rd2 {[%clk
0:00:26.6]} 47... Be4 {[%clk 0:00:34.2]} 48. Rb2 {[%clk 0:00:25.5]} 48... Rc3
{[%clk 0:00:26.8]} 49. Rd2 {[%clk 0:00:23.3]} 49... Rf3+ {[%clk 0:00:26.2]} 50.
Ke1 {[%clk 0:00:23]} 50... Rf5 {[%clk 0:00:24.7]} 51. Re2 {[%clk 0:00:19.7]}
51... Bf3 {[%clk 0:00:23.9]} 52. Rf2 {[%clk 0:00:18]} 52... Rd5 {[%clk
0:00:23.7]} 53. Ra2 {[%clk 0:00:16.2]} 53... Rxg5 {[%clk 0:00:19.6]} 54. hxg5
{[%clk 0:00:15.1]} 54... Kxg5 {[%clk 0:00:20.5]} 55. Kf2 {[%clk 0:00:14.4]}
55... Kf4 {[%clk 0:00:18.4]} 56. Ra4+ {[%clk 0:00:13.2]} 56... Be4 {[%clk
0:00:19]} 57. Ra3 {[%clk 0:00:12.1]} 57... g5 {[%clk 0:00:19.1]} 58. Ra7 {[%clk
0:00:10.1]} 58... h4 {[%clk 0:00:18]} 59. Rf7+ {[%clk 0:00:08.6]} 59... Bf5
{[%clk 0:00:18.3]} 60. Ra7 {[%clk 0:00:08.1]} 60... g4 {[%clk 0:00:18.3]} 61.
Ra4+ {[%clk 0:00:07.4]} 61... Be4 {[%clk 0:00:18.8]} 62. Kg1 {[%clk 0:00:05.6]}
62... g3 {[%clk 0:00:18.6]} 63. Ra7 {[%clk 0:00:04.1]} 63... h3 {[%clk
0:00:18.6]} 64. Rh7 {[%clk 0:00:03]} 64... Bxh7 {[%clk 0:00:15.9]} 0-1

[Event "*** Titled Tuesday Blitz"]
[Site "Chess.com"]
[Date "2020.03.03"]
[Round "3"]
[White "inegrepus"]
[Black "Grieve72"]
[Result "1-0"]
[WhiteElo "2258"]
[BlackElo "2398"]
[TimeControl "180+1"]
[EndTime "9:30:59 PST"]
[Termination "inegrepus won by resignation"]

1. d4 {[%clk 0:03:00.7]} 1... f5 {[%clk 0:02:59.2]} 2. h3 {[%clk 0:02:59]} 2...
d5 {[%clk 0:02:55.8]} 3. c4 {[%clk 0:02:58.4]} 3... e6 {[%clk 0:02:53.2]} 4. Nc3
{[%clk 0:02:57.4]} 4... Nf6 {[%clk 0:02:52.6]} 5. Bg5 {[%clk 0:02:55]} 5... Be7
{[%clk 0:02:49.6]} 6. e3 {[%clk 0:02:55.2]} 6... O-O {[%clk 0:02:48.4]} 7. Bd3
{[%clk 0:02:52.6]} 7... c6 {[%clk 0:02:46.1]} 8. Nf3 {[%clk 0:02:51.7]} 8... Bd7
{[%clk 0:02:45]} 9. Qc2 {[%clk 0:02:51.4]} 9... Be8 {[%clk 0:02:44]} 10. cxd5
{[%clk 0:02:40.5]} 10... cxd5 {[%clk 0:02:37.1]} 11. Rc1 {[%clk 0:02:28.1]}
11... Nc6 {[%clk 0:02:36.5]} 12. a3 {[%clk 0:02:28.1]} 12... h6 {[%clk
0:02:29.7]} 13. Bf4 {[%clk 0:02:26.6]} 13... Ne4 {[%clk 0:02:28]} 14. Ne5 {[%clk
0:02:19.5]} 14... Rc8 {[%clk 0:02:17.7]} 15. Bxe4 {[%clk 0:02:15.7]} 15... fxe4
{[%clk 0:02:15.8]} 16. O-O {[%clk 0:02:14.7]} 16... Bd6 {[%clk 0:02:07]} 17.
Nxc6 {[%clk 0:02:07.5]} 17... Bxc6 {[%clk 0:02:07]} 18. Bxd6 {[%clk 0:02:04.9]}
18... Qxd6 {[%clk 0:02:07.9]} 19. Qe2 {[%clk 0:01:57.2]} 19... a6 {[%clk
0:02:05.4]} 20. Qg4 {[%clk 0:01:55]} 20... Rf5 {[%clk 0:02:00.3]} 21. Na4 {[%clk
0:01:43.6]} 21... Rcf8 {[%clk 0:01:52]} 22. Nc5 {[%clk 0:01:42.9]} 22... R8f6
{[%clk 0:01:46.6]} 23. Rc2 {[%clk 0:01:32.1]} 23... Rg5 {[%clk 0:01:39.4]} 24.
Qh4 {[%clk 0:01:25.3]} 24... Rfg6 {[%clk 0:01:26]} 25. f4 {[%clk 0:01:12.5]}
25... exf3 {[%clk 0:01:22.2]} 26. Rxf3 {[%clk 0:01:11.9]} 26... e5 {[%clk
0:01:16.8]} 27. dxe5 {[%clk 0:00:52.7]} 27... Qxe5 {[%clk 0:00:57.5]} 28. Qd4
{[%clk 0:00:52.3]} 28... Qe7 {[%clk 0:00:47.5]} 29. Nd3 {[%clk 0:00:46.2]} 29...
Bb5 {[%clk 0:00:35.6]} 30. Nf4 {[%clk 0:00:41.6]} 30... Rf6 {[%clk 0:00:35.7]}
31. Nxd5 {[%clk 0:00:34]} 31... Rxd5 {[%clk 0:00:27.5]} 32. Qxd5+ {[%clk
0:00:34.9]} 32... Kh7 {[%clk 0:00:24.9]} 33. Rxf6 {[%clk 0:00:32.4]} 33... Qxf6
{[%clk 0:00:25.8]} 34. Qe4+ {[%clk 0:00:29.9]} 34... Kg8 {[%clk 0:00:17.4]} 35.
Rc8+ {[%clk 0:00:29.2]} 35... Kf7 {[%clk 0:00:18]} 36. Rc7+ {[%clk 0:00:27.6]}
36... Kg8 {[%clk 0:00:16]} 37. Rc8+ {[%clk 0:00:24.5]} 37... Kf7 {[%clk
0:00:15.6]} 38. Rc7+ {[%clk 0:00:21.6]} 38... Kg8 {[%clk 0:00:15.5]} 39. Qe7
{[%clk 0:00:20.4]} 39... Qg6 {[%clk 0:00:06.4]} 40. Rc8+ {[%clk 0:00:16.4]}
40... Kh7 {[%clk 0:00:05.7]} 41. Qf8 {[%clk 0:00:14.1]} 41... Qb1+ {[%clk
0:00:05.9]} 42. Kh2 {[%clk 0:00:14.3]} 42... Qe4 {[%clk 0:00:04.9]} 43. Qf4
{[%clk 0:00:10]} 43... Qe6 {[%clk 0:00:05]} 44. Rf8 {[%clk 0:00:06.4]} 44... Bc6
{[%clk 0:00:04]} 45. Qf5+ {[%clk 0:00:06.2]} 45... Qxf5 {[%clk 0:00:04]} 46.
Rxf5 {[%clk 0:00:07.1]} 46... Kg6 {[%clk 0:00:04.9]} 47. Rf4 {[%clk 0:00:05.5]}
47... Kg5 {[%clk 0:00:02.7]} 48. g3 {[%clk 0:00:05.2]} 48... h5 {[%clk
0:00:02.7]} 49. h4+ {[%clk 0:00:05.4]} 49... Kh6 {[%clk 0:00:03.6]} 50. Kg1
{[%clk 0:00:05.8]} 50... a5 {[%clk 0:00:01.2]} 51. Kf2 {[%clk 0:00:05.7]} 51...
a4 {[%clk 0:00:02.1]} 52. e4 {[%clk 0:00:05.5]} 52... Kg6 {[%clk 0:00:02]} 53.
e5 {[%clk 0:00:05.6]} 53... Bd5 {[%clk 0:00:02.2]} 54. Ke3 {[%clk 0:00:05.4]}
54... b5 {[%clk 0:00:02.5]} 55. Kd4 {[%clk 0:00:05.7]} 55... Bc4 {[%clk
0:00:03.4]} 56. Kc5 {[%clk 0:00:05.1]} 56... Kh7 {[%clk 0:00:03.4]} 57. Kd6
{[%clk 0:00:05.2]} 57... g5 {[%clk 0:00:03.4]} 58. hxg5 {[%clk 0:00:05.4]} 58...
Kg6 {[%clk 0:00:04]} 59. e6 {[%clk 0:00:04.6]} 59... Kxg5 {[%clk 0:00:04.3]} 60.
e7 {[%clk 0:00:04]} 1-0

[Event "*** Titled Tuesday Blitz"]
[Site "Chess.com"]
[Date "2020.03.03"]
[Round "3"]
[White "farzadbfd"]
[Black "Manukyan_Artak"]
[Result "1-0"]
[WhiteElo "2627"]
[BlackElo "2417"]
[TimeControl "180+1"]
[EndTime "9:31:01 PST"]
[Termination "farzadbfd won by resignation"]

1. e4 {[%clk 0:03:00.9]} 1... c6 {[%clk 0:02:59]} 2. d4 {[%clk 0:02:59.8]} 2...
d5 {[%clk 0:02:59.9]} 3. e5 {[%clk 0:02:59.7]} 3... Bf5 {[%clk 0:02:59.3]} 4. g4
{[%clk 0:02:59.2]} 4... Bg6 {[%clk 0:02:58.1]} 5. e6 {[%clk 0:02:58.7]} 5...
fxe6 {[%clk 0:02:56.8]} 6. h4 {[%clk 0:02:57.6]} 6... e5 {[%clk 0:02:46.8]} 7.
dxe5 {[%clk 0:02:41.4]} 7... e6 {[%clk 0:02:42.4]} 8. h5 {[%clk 0:02:39.7]} 8...
Bf7 {[%clk 0:02:40.1]} 9. Nf3 {[%clk 0:02:34.9]} 9... Nh6 {[%clk 0:02:15.2]} 10.
Ng5 {[%clk 0:02:23.6]} 10... Be7 {[%clk 0:02:12.3]} 11. Nxf7 {[%clk 0:02:22.5]}
11... Nxf7 {[%clk 0:02:11.7]} 12. Qe2 {[%clk 0:02:03]} 12... Nd7 {[%clk
0:02:03.9]} 13. f4 {[%clk 0:01:58.9]} 13... Nc5 {[%clk 0:01:35.4]} 14. Bg2
{[%clk 0:01:57]} 14... Bh4+ {[%clk 0:01:20.3]} 15. Kf1 {[%clk 0:01:51.6]} 15...
h6 {[%clk 0:01:05.9]} 16. Nd2 {[%clk 0:01:49.4]} 16... Be7 {[%clk 0:01:02]} 17.
Nb3 {[%clk 0:01:41.6]} 17... Nxb3 {[%clk 0:00:59.3]} 18. axb3 {[%clk 0:01:41.2]}
18... Qb6 {[%clk 0:00:58.8]} 19. Bf3 {[%clk 0:01:34.2]} 19... O-O-O {[%clk
0:00:56.4]} 20. Kg2 {[%clk 0:01:25.5]} 20... Rhg8 {[%clk 0:00:40.8]} 21. Bd2
{[%clk 0:01:24.4]} 21... Rd7 {[%clk 0:00:28.3]} 22. Qd3 {[%clk 0:01:15.7]} 22...
Kb8 {[%clk 0:00:23]} 23. Ba5 {[%clk 0:01:14.2]} 23... Qb5 {[%clk 0:00:18.2]} 24.
Qxb5 {[%clk 0:00:55]} 24... cxb5 {[%clk 0:00:19.1]} 25. Be2 {[%clk 0:00:55.4]}
25... a6 {[%clk 0:00:18.5]} 26. Bd3 {[%clk 0:00:54.4]} 26... Rc8 {[%clk
0:00:16.8]} 27. Rhe1 {[%clk 0:00:49.9]} 27... Bd8 {[%clk 0:00:17]} 28. Bd2
{[%clk 0:00:49]} 28... Bc7 {[%clk 0:00:14.9]} 29. Be3 {[%clk 0:00:45.2]} 29...
Re7 {[%clk 0:00:15]} 30. Bd4 {[%clk 0:00:35.9]} 30... Rce8 {[%clk 0:00:13.8]}
31. Re2 {[%clk 0:00:36.1]} 31... Nd8 {[%clk 0:00:13.4]} 32. Rae1 {[%clk
0:00:35.1]} 32... Nc6 {[%clk 0:00:13.6]} 33. Bc5 {[%clk 0:00:35.6]} 33... Rf7
{[%clk 0:00:13.2]} 34. Bg6 {[%clk 0:00:35.6]} 34... Ref8 {[%clk 0:00:13.2]} 35.
Bxf7 {[%clk 0:00:35.7]} 35... Rxf7 {[%clk 0:00:14.1]} 36. Kg3 {[%clk 0:00:36.1]}
36... b6 {[%clk 0:00:11.9]} 37. Bd6 {[%clk 0:00:36.6]} 37... Nd4 {[%clk
0:00:10.3]} 38. Rd2 {[%clk 0:00:34.3]} 38... Nc6 {[%clk 0:00:08.5]} 39. Bxc7+
{[%clk 0:00:33.7]} 39... Kxc7 {[%clk 0:00:09.4]} 40. f5 {[%clk 0:00:34.3]} 40...
Re7 {[%clk 0:00:08.9]} 41. f6 {[%clk 0:00:33]} 41... gxf6 {[%clk 0:00:09.3]} 42.
exf6 {[%clk 0:00:33.9]} 42... Re8 {[%clk 0:00:07.1]} 43. Rxd5 {[%clk 0:00:34.1]}
43... Rf8 {[%clk 0:00:02.8]} 44. Rxe6 {[%clk 0:00:33]} 44... Nb4 {[%clk
0:00:02.7]} 45. Rf5 {[%clk 0:00:29]} 45... Nxc2 {[%clk 0:00:02.1]} 46. f7 {[%clk
0:00:28.9]} 46... Nd4 {[%clk 0:00:01.9]} 47. Ref6 {[%clk 0:00:18.6]} 47... Nxf5+
{[%clk 0:00:02]} 48. Rxf5 {[%clk 0:00:19.5]} 48... Kd7 {[%clk 0:00:02.9]} 49.
Rf6 {[%clk 0:00:17.8]} 49... Ke7 {[%clk 0:00:03]} 50. Rxb6 {[%clk 0:00:16.4]}
50... Kxf7 {[%clk 0:00:03.4]} 51. Rxa6 {[%clk 0:00:15.8]} 51... Kg7 {[%clk
0:00:03.6]} 52. Rb6 {[%clk 0:00:15.1]} 52... Rc8 {[%clk 0:00:03.3]} 53. Rxb5
{[%clk 0:00:15.1]} 53... Rc2 {[%clk 0:00:04.2]} 54. b4 {[%clk 0:00:14.7]} 54...
Rxb2 {[%clk 0:00:03.8]} 55. Rb7+ {[%clk 0:00:15.3]} 55... Kf6 {[%clk 0:00:03.1]}
56. Rb6+ {[%clk 0:00:15.7]} 56... Kg7 {[%clk 0:00:03.2]} 57. b5 {[%clk
0:00:13.9]} 57... Rb4 {[%clk 0:00:02.5]} 58. Rg6+ {[%clk 0:00:12.8]} 58... Kh7
{[%clk 0:00:02.2]} 59. b6 {[%clk 0:00:13.7]} 59... Rb5 {[%clk 0:00:01.3]} 60.
Rc6 {[%clk 0:00:14.1]} 60... Rb4 {[%clk 0:00:01.4]} 61. Rc7+ {[%clk 0:00:14.6]}
61... Kg8 {[%clk 0:00:01.7]} 62. b7 {[%clk 0:00:15.5]} 1-0

[Event "*** Titled Tuesday Blitz"]
[Site "Chess.com"]
[Date "2020.03.03"]
[Round "3"]
[White "Yeritsyan_Aram"]
[Black "HrvojeZagreb"]
[Result "0-1"]
[WhiteElo "2353"]
[BlackElo "2210"]
[TimeControl "180+1"]
[EndTime "9:31:01 PST"]
[Termination "HrvojeZagreb won on time"]

1. e4 {[%clk 0:03:00.8]} 1... e6 {[%clk 0:03:00.1]} 2. d4 {[%clk 0:03:00.8]}
2... d5 {[%clk 0:03:00.2]} 3. Nc3 {[%clk 0:03:00.8]} 3... dxe4 {[%clk
0:03:00.4]} 4. Nxe4 {[%clk 0:03:00.9]} 4... Nd7 {[%clk 0:03:01]} 5. Nf3 {[%clk
0:03:00.9]} 5... Ngf6 {[%clk 0:03:01.4]} 6. Bg5 {[%clk 0:03:00.6]} 6... Be7
{[%clk 0:02:59.3]} 7. Nxf6+ {[%clk 0:03:00.7]} 7... Bxf6 {[%clk 0:02:58.7]} 8.
h4 {[%clk 0:03:01.3]} 8... h6 {[%clk 0:02:58.2]} 9. Be3 {[%clk 0:02:59.6]} 9...
b6 {[%clk 0:02:56.7]} 10. Bd3 {[%clk 0:02:59.6]} 10... Bb7 {[%clk 0:02:56.9]}
11. Qe2 {[%clk 0:03:00.3]} 11... O-O {[%clk 0:02:54.6]} 12. O-O-O {[%clk
0:03:00.6]} 12... c5 {[%clk 0:02:53.4]} 13. dxc5 {[%clk 0:03:00.7]} 13... Qc7
{[%clk 0:02:49.2]} 14. g4 {[%clk 0:02:56]} 14... Nxc5 {[%clk 0:02:47]} 15. g5
{[%clk 0:02:56.4]} 15... Nxd3+ {[%clk 0:02:44.7]} 16. Rxd3 {[%clk 0:02:56.3]}
16... Rfc8 {[%clk 0:02:34.7]} 17. Rd2 {[%clk 0:02:31.9]} 17... Qc4 {[%clk
0:02:19.2]} 18. Qxc4 {[%clk 0:02:25.5]} 18... Rxc4 {[%clk 0:02:20.1]} 19. gxf6
{[%clk 0:02:25.8]} 19... Bxf3 {[%clk 0:02:19.5]} 20. Rg1 {[%clk 0:02:26.4]}
20... Rg4 {[%clk 0:01:44.6]} 21. Rxg4 {[%clk 0:02:20.2]} 21... Bxg4 {[%clk
0:01:45.5]} 22. Rd7 {[%clk 0:02:10.9]} 22... Bf5 {[%clk 0:01:28.5]} 23. c4
{[%clk 0:02:06.4]} 23... Rc8 {[%clk 0:01:24.9]} 24. b3 {[%clk 0:02:06.1]} 24...
b5 {[%clk 0:01:23.9]} 25. Rxa7 {[%clk 0:01:34.8]} 25... bxc4 {[%clk 0:01:23.4]}
26. b4 {[%clk 0:01:34.7]} 26... gxf6 {[%clk 0:01:12.5]} 27. b5 {[%clk
0:01:33.5]} 27... Be4 {[%clk 0:01:08.3]} 28. b6 {[%clk 0:01:32.6]} 28... e5
{[%clk 0:01:02.7]} 29. a4 {[%clk 0:01:18.1]} 29... c3 {[%clk 0:00:49.6]} 30. a5
{[%clk 0:01:17.2]} 30... Rc4 {[%clk 0:00:29.5]} 31. Rc7 {[%clk 0:00:52.7]} 31...
Ra4 {[%clk 0:00:14.6]} 32. Rxc3 {[%clk 0:00:49.6]} 32... Rxa5 {[%clk 0:00:14.8]}
33. Rb3 {[%clk 0:00:48.5]} 33... Ra8 {[%clk 0:00:13.1]} 34. Bxh6 {[%clk
0:00:48]} 34... Rb8 {[%clk 0:00:13.3]} 35. Kd2 {[%clk 0:00:46.9]} 35... Rb7
{[%clk 0:00:13.6]} 36. Be3 {[%clk 0:00:44.9]} 36... Bd5 {[%clk 0:00:13.7]} 37.
Rb4 {[%clk 0:00:41.1]} 37... f5 {[%clk 0:00:13.4]} 38. f4 {[%clk 0:00:39.9]}
38... f6 {[%clk 0:00:13.8]} 39. Ke1 {[%clk 0:00:33]} 39... Kf7 {[%clk
0:00:14.1]} 40. Kf2 {[%clk 0:00:31.8]} 40... Ke6 {[%clk 0:00:14.4]} 41. Rb1
{[%clk 0:00:26.5]} 41... Rg7 {[%clk 0:00:14.3]} 42. Rg1 {[%clk 0:00:23.4]} 42...
Rxg1 {[%clk 0:00:13.8]} 43. Kxg1 {[%clk 0:00:23.8]} 43... Kf7 {[%clk 0:00:13.9]}
44. h5 {[%clk 0:00:20.7]} 44... Kg7 {[%clk 0:00:14.2]} 45. Kf2 {[%clk
0:00:16.2]} 45... Bb7 {[%clk 0:00:13.8]} 46. Ke2 {[%clk 0:00:10.2]} 46... e4
{[%clk 0:00:13.9]} 47. Kd2 {[%clk 0:00:06.4]} 47... Kh6 {[%clk 0:00:14.2]} 48.
Kc3 {[%clk 0:00:05.3]} 48... Kxh5 {[%clk 0:00:14.7]} 49. Kd4 {[%clk 0:00:05.4]}
49... Kg4 {[%clk 0:00:14.4]} 50. Kc3 {[%clk 0:00:05]} 50... Kf3 {[%clk
0:00:14.8]} 51. Kd2 {[%clk 0:00:05.1]} 51... Bc6 {[%clk 0:00:15.2]} 52. Bd4
{[%clk 0:00:03.9]} 52... Bb7 {[%clk 0:00:14.6]} 53. Bxf6 {[%clk 0:00:03.9]}
53... Kxf4 {[%clk 0:00:14.8]} 54. Ke1 {[%clk 0:00:03.2]} 54... e3 {[%clk
0:00:14.8]} 55. Bh4 {[%clk 0:00:03]} 55... Ke4 {[%clk 0:00:15.2]} 56. Bg3 {[%clk
0:00:01.3]} 56... f4 {[%clk 0:00:16.1]} 57. Bh2 {[%clk 0:00:01.8]} 57... f3
{[%clk 0:00:16.2]} 58. Bg1 {[%clk 0:00:02.4]} 58... Kf4 {[%clk 0:00:16.1]} 59.
Kf1 {[%clk 0:00:02.1]} 59... Ba6+ {[%clk 0:00:16.2]} 60. Ke1 {[%clk 0:00:02.6]}
60... Bb7 {[%clk 0:00:16.4]} 61. Kf1 {[%clk 0:00:02.9]} 61... Bd5 {[%clk
0:00:16.6]} 62. Ke1 {[%clk 0:00:03.4]} 62... Ke4 {[%clk 0:00:16.7]} 63. Kf1
{[%clk 0:00:03.3]} 63... Kd3 {[%clk 0:00:17.3]} 64. Ke1 {[%clk 0:00:03.9]} 64...
Bc6 {[%clk 0:00:17.6]} 65. Kf1 {[%clk 0:00:04.4]} 65... Kd2 {[%clk 0:00:17.8]}
0-1

[Event "*** Titled Tuesday Blitz"]
[Site "Chess.com"]
[Date "2020.03.03"]
[Round "3"]
[White "juniortay"]
[Black "ronaldbrizuela"]
[Result "1-0"]
[WhiteElo "2480"]
[BlackElo "2649"]
[TimeControl "180+1"]
[EndTime "9:31:02 PST"]
[Termination "juniortay won on time"]

1. e4 {[%clk 0:03:00.9]} 1... e6 {[%clk 0:02:59.5]} 2. Nf3 {[%clk 0:03:00.7]}
2... d6 {[%clk 0:02:56.9]} 3. Nc3 {[%clk 0:03:01.6]} 3... Nf6 {[%clk 0:02:51.2]}
4. d4 {[%clk 0:03:01.5]} 4... d5 {[%clk 0:02:51.3]} 5. e5 {[%clk 0:03:01.3]}
5... Nfd7 {[%clk 0:02:51.4]} 6. a3 {[%clk 0:02:58.2]} 6... c5 {[%clk 0:02:50.1]}
7. Bg5 {[%clk 0:02:58]} 7... Qb6 {[%clk 0:02:47.4]} 8. dxc5 {[%clk 0:02:58.1]}
8... Nxc5 {[%clk 0:02:45.4]} 9. Bb5+ {[%clk 0:02:56.2]} 9... Nc6 {[%clk
0:02:42.5]} 10. O-O {[%clk 0:02:55.3]} 10... Bd7 {[%clk 0:02:41.9]} 11. Be3
{[%clk 0:02:43.3]} 11... Qc7 {[%clk 0:02:39.2]} 12. Bxc6 {[%clk 0:02:37.7]}
12... bxc6 {[%clk 0:02:29.5]} 13. b4 {[%clk 0:02:30.3]} 13... Nb7 {[%clk
0:02:18.3]} 14. Re1 {[%clk 0:02:30.4]} 14... Be7 {[%clk 0:02:15.2]} 15. Bf4
{[%clk 0:02:28]} 15... O-O {[%clk 0:02:03.7]} 16. Qd2 {[%clk 0:02:27]} 16... c5
{[%clk 0:01:58.3]} 17. Nxd5 {[%clk 0:02:26.2]} 17... exd5 {[%clk 0:01:49.2]} 18.
e6 {[%clk 0:02:26.5]} 18... Qc6 {[%clk 0:01:44.4]} 19. exd7 {[%clk 0:02:21.7]}
19... Qxd7 {[%clk 0:01:45]} 20. Ne5 {[%clk 0:02:18.4]} 20... Qf5 {[%clk
0:01:09.4]} 21. g4 {[%clk 0:02:02.9]} 21... Qe6 {[%clk 0:01:04.8]} 22. h3 {[%clk
0:01:50.3]} 22... Rfe8 {[%clk 0:01:01.6]} 23. b5 {[%clk 0:01:48.2]} 23... Nd6
{[%clk 0:00:55.1]} 24. Nc6 {[%clk 0:01:40]} 24... Ne4 {[%clk 0:00:50]} 25. Qe3
{[%clk 0:01:39.3]} 25... Bf6 {[%clk 0:00:44.1]} 26. Rad1 {[%clk 0:01:35.7]}
26... a6 {[%clk 0:00:39.8]} 27. a4 {[%clk 0:01:27.6]} 27... axb5 {[%clk
0:00:39.5]} 28. axb5 {[%clk 0:01:28.5]} 28... Bh4 {[%clk 0:00:39.7]} 29. Bg3
{[%clk 0:01:17.1]} 29... Bxg3 {[%clk 0:00:38.4]} 30. fxg3 {[%clk 0:01:16.9]}
30... Qd7 {[%clk 0:00:32.3]} 31. Qf3 {[%clk 0:01:08.1]} 31... Re6 {[%clk
0:00:28.5]} 32. Rxe4 {[%clk 0:01:04]} 32... dxe4 {[%clk 0:00:27.8]} 33. Rxd7
{[%clk 0:01:03.6]} 33... exf3 {[%clk 0:00:27.9]} 34. Kf2 {[%clk 0:00:59.1]}
34... Kf8 {[%clk 0:00:23.4]} 35. Kxf3 {[%clk 0:00:54.5]} 35... Ra3+ {[%clk
0:00:23.3]} 36. Kf2 {[%clk 0:00:52.9]} 36... Ra2 {[%clk 0:00:19.1]} 37. Rd8+
{[%clk 0:00:42.8]} 37... Re8 {[%clk 0:00:18.8]} 38. Rd2 {[%clk 0:00:41.8]} 38...
Rb2 {[%clk 0:00:18.8]} 39. Na7 {[%clk 0:00:39]} 39... Ra8 {[%clk 0:00:18.6]} 40.
Rd7 {[%clk 0:00:39]} 40... Rxc2+ {[%clk 0:00:18.5]} 41. Kf3 {[%clk 0:00:39.5]}
41... Rb2 {[%clk 0:00:18.6]} 42. Ke4 {[%clk 0:00:38.2]} 42... g6 {[%clk
0:00:18.1]} 43. Kd5 {[%clk 0:00:37.8]} 43... Rxa7 {[%clk 0:00:18]} 44. Rxa7
{[%clk 0:00:36.2]} 44... Rxb5 {[%clk 0:00:18.9]} 45. Ra3 {[%clk 0:00:32.6]}
45... Rb8 {[%clk 0:00:10.2]} 46. Kxc5 {[%clk 0:00:31.9]} 46... Rd8 {[%clk
0:00:10.5]} 47. Re3 {[%clk 0:00:30.5]} 47... Kg7 {[%clk 0:00:10.2]} 48. Kc6
{[%clk 0:00:25.3]} 48... Rd1 {[%clk 0:00:10]} 49. h4 {[%clk 0:00:23.3]} 49... f5
{[%clk 0:00:09.1]} 50. gxf5 {[%clk 0:00:21.8]} 50... gxf5 {[%clk 0:00:08.8]} 51.
Rf3 {[%clk 0:00:20.9]} 51... Kg6 {[%clk 0:00:08.9]} 52. Kc5 {[%clk 0:00:20.4]}
52... Rd8 {[%clk 0:00:06.7]} 53. Kc6 {[%clk 0:00:20.2]} 53... Rd4 {[%clk
0:00:05.7]} 54. Kc5 {[%clk 0:00:19.3]} 54... Rd1 {[%clk 0:00:06.6]} 55. Kc6
{[%clk 0:00:19.1]} 55... h6 {[%clk 0:00:06.7]} 56. Kc5 {[%clk 0:00:18.5]} 56...
Rd2 {[%clk 0:00:05.1]} 57. Kc4 {[%clk 0:00:18.1]} 57... Rd1 {[%clk 0:00:04.4]}
58. Kc5 {[%clk 0:00:18.2]} 58... Rd8 {[%clk 0:00:03.4]} 59. Kc4 {[%clk
0:00:18.1]} 59... f4 {[%clk 0:00:02.9]} 60. Rxf4 {[%clk 0:00:14.4]} 60... Kh5
{[%clk 0:00:02.8]} 61. Rf6 {[%clk 0:00:11.6]} 1-0